[Event "15. Dobrovický rapid - Tereos TTD a.s. – open"]
[Site "Dobrovice, Czech Republic"]
[Date "2020.02.29"]
[Round "8.5"]
[White "Burdalev Kirill"]
[Black "Kaderabek Jiri"]
[Result "1-0"]
[TimeControl "15m + 3s / tah"]
[WhiteElo "2334"]
[BlackElo "2105"]

1. d4 {[%clk 00:15:04]} {[%emt 00:00:01]} Nf6 {[%clk 00:15:05]} {[%emt
00:00:01]} 2. c4 {[%clk 00:15:06]} c5 {[%clk 00:15:07]} 3. Nf3 {[%clk
00:15:01]} {[%emt 00:00:09]} cxd4 {[%clk 00:14:55]} {[%emt 00:00:15]} 4. Nxd4
{[%clk 00:15:02]} e5 {[%clk 00:14:57]} {[%emt 00:00:02]} 5. Nb5 {[%clk
00:14:54]} {[%emt 00:00:12]} d5 {[%clk 00:14:45]} {[%emt 00:00:15]} 6. cxd5
{[%clk 00:14:55]} {[%emt 00:00:01]} Bc5 {[%clk 00:13:52]} {[%emt 00:00:56]} 7.
e3 {[%clk 00:14:53]} {[%emt 00:00:05]} O-O {[%clk 00:13:50]} {[%emt 00:00:05]}
8. N5c3 {[%clk 00:14:44]} {[%emt 00:00:13]} a6 {[%clk 00:13:44]} {[%emt
00:00:09]} 9. Nd2 {[%clk 00:14:00]} {[%emt 00:00:47]} Bf5 {[%clk 00:13:08]}
{[%emt 00:00:38]} 10. Nf3 {[%clk 00:13:37]} {[%emt 00:00:26]} Nbd7 {[%clk
00:11:31]} {[%emt 00:01:40]} 11. Be2 {[%clk 00:13:38]} {[%emt 00:00:01]} Re8
{[%clk 00:11:16]} {[%emt 00:00:18]} 12. a3 {[%clk 00:13:11]} {[%emt 00:00:30]}
b5 {[%clk 00:11:03]} {[%emt 00:00:16]} 13. Nh4 {[%clk 00:13:10]} {[%emt
00:00:04]} Bg6 {[%clk 00:10:51]} {[%emt 00:00:14]} 14. Nxg6 {[%clk 00:13:08]}
{[%emt 00:00:05]} hxg6 {[%clk 00:10:53]} {[%emt 00:00:02]} 15. e4 {[%clk
00:13:05]} {[%emt 00:00:06]} Bd4 {[%clk 00:10:40]} {[%emt 00:00:15]} 16. Bf3
{[%clk 00:11:41]} {[%emt 00:01:27]} Rc8 {[%clk 00:10:22]} {[%emt 00:00:20]} 17.
Ne2 {[%clk 00:11:32]} {[%emt 00:00:13]} Qb6 {[%clk 00:09:00]} {[%emt 00:01:25]}
18. O-O {[%clk 00:11:27]} {[%emt 00:00:08]} Rc7 {[%clk 00:08:18]} {[%emt
00:00:45]} 19. Rb1 {[%clk 00:10:40]} {[%emt 00:00:50]} Rec8 {[%clk 00:08:19]}
{[%emt 00:00:02]} 20. Nxd4 {[%clk 00:10:35]} {[%emt 00:00:08]} exd4 {[%clk
00:08:12]} {[%emt 00:00:09]} 21. Bf4 {[%clk 00:10:37]} {[%emt 00:00:02]} Rc2
{[%clk 00:08:03]} {[%emt 00:00:12]} 22. e5 {[%clk 00:10:32]} {[%emt 00:00:08]}
Nh5 {[%clk 00:07:27]} {[%emt 00:00:39]} 23. Bxh5 {[%clk 00:10:18]} {[%emt
00:00:17]} gxh5 {[%clk 00:07:29]} 24. Qxh5 {[%clk 00:10:12]} {[%emt 00:00:09]}
Nc5 {[%clk 00:07:01]} {[%emt 00:00:31]} 25. Qf5 {[%clk 00:09:55]} {[%emt
00:00:19]} Nb3 {[%clk 00:06:48]} {[%emt 00:00:16]} 26. e6 {[%clk 00:09:55]}
{[%emt 00:00:03]} fxe6 {[%clk 00:06:40]} {[%emt 00:00:12]} 27. dxe6 {[%clk
00:09:55]} {[%emt 00:00:01]} d3 {[%clk 00:06:07]} {[%emt 00:00:37]} 28. Qf7+
{[%clk 00:09:28]} {[%emt 00:00:30]} Kh8 {[%clk 00:06:08]} {[%emt 00:00:02]} 29.
e7 {[%clk 00:09:19]} {[%emt 00:00:12]} Qc6 {[%clk 00:05:40]} {[%emt 00:00:31]}
30. Qxb3 {[%clk 00:09:13]} {[%emt 00:00:09]} 1-0

[Event "15. Dobrovický rapid - Tereos TTD a.s. – open"]
[Site "Dobrovice, Czech Republic"]
[Date "2020.02.29"]
[Round "8.6"]
[White "Flasar Jaroslav"]
[Black "Zahorbensky Jaroslav"]
[Result "1-0"]
[TimeControl "15m + 3s / tah"]
[WhiteElo "1969"]
[BlackElo "2105"]

1. e4 {[%clk 00:15:02]} {[%emt 00:00:03]} e5 {[%clk 00:15:04]} {[%emt
00:00:02]} 2. Nf3 {[%clk 00:15:04]} {[%emt 00:00:01]} Nf6 {[%clk 00:15:00]}
{[%emt 00:00:06]} 3. Bc4 {[%clk 00:15:03]} {[%emt 00:00:04]} Nxe4 {[%clk
00:14:45]} {[%emt 00:00:18]} 4. Nc3 {[%clk 00:15:04]} Nf6 {[%clk 00:14:47]}
{[%emt 00:00:01]} 5. Nxe5 {[%clk 00:14:53]} {[%emt 00:00:14]} d5 {[%clk
00:14:48]} {[%emt 00:00:02]} 6. Bb3 {[%clk 00:14:27]} {[%emt 00:00:29]} Be7
{[%clk 00:14:39]} {[%emt 00:00:11]} 7. d4 {[%clk 00:14:03]} {[%emt 00:00:28]}
O-O {[%clk 00:14:38]} {[%emt 00:00:03]} 8. O-O {[%clk 00:14:03]} {[%emt
00:00:03]} c6 {[%clk 00:14:03]} {[%emt 00:00:39]} 9. f4 {[%clk 00:13:58]}
{[%emt 00:00:07]} b5 {[%clk 00:13:39]} {[%emt 00:00:27]} 10. Be3 {[%clk
00:13:40]} {[%emt 00:00:21]} b4 {[%clk 00:13:38]} {[%emt 00:00:04]} 11. Ne2
{[%clk 00:13:37]} {[%emt 00:00:06]} Ne4 {[%clk 00:13:39]} {[%emt 00:00:02]} 12.
c3 {[%clk 00:13:21]} {[%emt 00:00:19]} f6 {[%clk 00:13:19]} {[%emt 00:00:23]}
13. Nd3 {[%clk 00:13:17]} {[%emt 00:00:07]} a5 {[%clk 00:13:12]} {[%emt
00:00:10]} 14. cxb4 {[%clk 00:12:49]} {[%emt 00:00:31]} axb4 {[%clk 00:13:12]}
{[%emt 00:00:02]} 15. Bc2 {[%clk 00:12:38]} {[%emt 00:00:14]} Ba6 {[%clk
00:12:52]} {[%emt 00:00:23]} 16. Rf3 {[%clk 00:12:13]} {[%emt 00:00:29]} Nd7
{[%clk 00:12:36]} {[%emt 00:00:19]} 17. f5 {[%clk 00:11:59]} {[%emt 00:00:17]}
Bxd3 {[%clk 00:12:09]} {[%emt 00:00:31]} 18. Bxd3 {[%clk 00:11:57]} {[%emt
00:00:04]} Bd6 {[%clk 00:12:10]} {[%emt 00:00:01]} 19. Bf4 {[%clk 00:11:47]}
{[%emt 00:00:14]} Qc7 {[%clk 00:11:53]} {[%emt 00:00:19]} 20. Bxd6 {[%clk
00:11:08]} {[%emt 00:00:42]} Qxd6 {[%clk 00:11:50]} {[%emt 00:00:06]} 21. Nf4
{[%clk 00:11:07]} {[%emt 00:00:04]} Ng5 {[%clk 00:11:29]} {[%emt 00:00:24]} 22.
Rf2 {[%clk 00:11:04]} {[%emt 00:00:06]} Rfe8 {[%clk 00:11:30]} {[%emt
00:00:02]} 23. Qg4 {[%clk 00:10:39]} {[%emt 00:00:28]} Re3 {[%clk 00:11:00]}
{[%emt 00:00:33]} 24. h4 {[%clk 00:09:57]} {[%emt 00:00:46]} Ne4 {[%clk
00:11:00]} {[%emt 00:00:02]} 25. Ne6 {[%clk 00:09:55]} {[%emt 00:00:05]} Qe7
{[%clk 00:10:30]} {[%emt 00:00:33]} 26. Rf3 {[%clk 00:09:39]} {[%emt 00:00:20]}
Rxf3 {[%clk 00:09:40]} {[%emt 00:00:52]} 27. gxf3 {[%clk 00:09:01]} {[%emt
00:00:41]} Nd6 {[%clk 00:09:21]} {[%emt 00:00:22]} 28. Kf2 {[%clk 00:08:48]}
{[%emt 00:00:16]} Ne8 {[%clk 00:08:37]} {[%emt 00:00:47]} 29. h5 {[%clk
00:08:06]} {[%emt 00:00:45]} h6 {[%clk 00:08:32]} {[%emt 00:00:08]} 30. Re1
{[%clk 00:07:32]} {[%emt 00:00:36]} Qf7 {[%clk 00:07:44]} {[%emt 00:00:51]} 31.
Bb1 {[%clk 00:07:19]} {[%emt 00:00:15]} Ra7 {[%clk 00:06:13]} {[%emt 00:01:35]}
32. Nd8 {[%clk 00:06:39]} {[%emt 00:00:43]} Qf8 {[%clk 00:06:15]} {[%emt
00:00:01]} 33. Qg6 {[%clk 00:06:28]} {[%emt 00:00:14]} Nc7 {[%clk 00:05:51]}
{[%emt 00:00:27]} 34. Nxc6 {[%clk 00:06:23]} {[%emt 00:00:09]} Ra8 {[%clk
00:03:59]} {[%emt 00:01:55]} 35. Re7 {[%clk 00:06:09]} {[%emt 00:00:17]} Re8
{[%clk 00:03:48]} {[%emt 00:00:14]} 36. Rxd7 {[%clk 00:05:59]} {[%emt
00:00:12]} Nb5 {[%clk 00:02:21]} {[%emt 00:01:29]} 37. Qxe8 {[%clk 00:05:59]}
{[%emt 00:00:04]} Qxe8 {[%clk 00:02:21]} {[%emt 00:00:03]} 38. Rd8 {[%clk
00:06:01]} Qxd8 {[%clk 00:02:19]} {[%emt 00:00:04]} 39. Nxd8 {[%clk 00:06:03]}
{[%emt 00:00:02]} Nxd4 {[%clk 00:02:19]} {[%emt 00:00:03]} 40. Ne6 {[%clk
00:05:54]} {[%emt 00:00:12]} Nc6 {[%clk 00:01:59]} {[%emt 00:00:23]} 41. Ke3
{[%clk 00:05:53]} {[%emt 00:00:03]} Kf7 {[%clk 00:02:00]} {[%emt 00:00:02]} 42.
a3 {[%clk 00:05:52]} {[%emt 00:00:04]} bxa3 {[%clk 00:02:01]} {[%emt 00:00:02]}
43. bxa3 {[%clk 00:05:53]} {[%emt 00:00:01]} Ne5 {[%clk 00:02:00]} {[%emt
00:00:05]} 44. a4 {[%clk 00:05:41]} {[%emt 00:00:15]} Ke7 {[%clk 00:01:59]}
{[%emt 00:00:04]} 45. Nxg7 {[%clk 00:05:33]} {[%emt 00:00:12]} Kd6 {[%clk
00:01:50]} {[%emt 00:00:12]} 46. Ne6 {[%clk 00:05:28]} {[%emt 00:00:08]} 1-0

[Event "15. Dobrovický rapid - Tereos TTD a.s. – open"]
[Site "Dobrovice, Czech Republic"]
[Date "2020.02.29"]
[Round "8.7"]
[White "Pesek Radomir"]
[Black "Groh Jiri"]
[Result "1/2-1/2"]
[TimeControl "15m + 3s / tah"]
[WhiteElo "1999"]
[BlackElo "2031"]

1. c4 {[%clk 00:15:06]} {[%emt 00:00:03]} Nf6 {[%clk 00:15:07]} {[%emt
00:00:02]} 2. Nc3 {[%clk 00:15:08]} {[%emt 00:00:01]} e6 {[%clk 00:15:08]}
{[%emt 00:00:02]} 3. g3 {[%clk 00:15:10]} {[%emt 00:00:01]} d5 {[%clk
00:15:08]} {[%emt 00:00:02]} 4. cxd5 {[%clk 00:15:07]} {[%emt 00:00:05]} exd5
{[%clk 00:15:10]} {[%emt 00:00:01]} 5. d4 {[%clk 00:15:09]} {[%emt 00:00:02]}
Be7 {[%emt 00:00:08]} 6. Bg2 O-O {[%clk 00:14:51]} {[%emt 00:00:13]} 7. Nf3
{[%clk 00:15:10]} {[%emt 00:00:02]} c6 {[%clk 00:14:45]} {[%emt 00:00:08]} 8.
O-O {[%clk 00:15:12]} {[%emt 00:00:02]} Bf5 {[%clk 00:14:42]} {[%emt 00:00:05]}
9. Nh4 {[%clk 00:15:06]} {[%emt 00:00:10]} Be6 {[%clk 00:14:36]} {[%emt
00:00:09]} 10. a3 {[%clk 00:14:54]} {[%emt 00:00:14]} Qd7 {[%clk 00:14:23]}
{[%emt 00:00:15]} 11. Bd2 {[%clk 00:14:22]} {[%emt 00:00:36]} Bh3 {[%clk
00:14:21]} {[%emt 00:00:06]} 12. Nf3 {[%clk 00:14:08]} {[%emt 00:00:17]} Bxg2
{[%clk 00:14:12]} {[%emt 00:00:12]} 13. Kxg2 {[%clk 00:14:09]} {[%emt
00:00:02]} Qf5 {[%clk 00:14:09]} {[%emt 00:00:05]} 14. Qb3 {[%clk 00:14:02]}
{[%emt 00:00:11]} b6 {[%clk 00:13:59]} {[%emt 00:00:13]} 15. Rae1 {[%clk
00:13:40]} {[%emt 00:00:25]} Nbd7 {[%clk 00:13:45]} {[%emt 00:00:17]} 16. Nh4
{[%clk 00:13:20]} {[%emt 00:00:23]} Qh5 {[%clk 00:13:20]} {[%emt 00:00:28]} 17.
Qc2 {[%clk 00:12:33]} {[%emt 00:00:50]} g6 {[%clk 00:13:02]} {[%emt 00:00:21]}
18. Nf3 {[%clk 00:12:07]} {[%emt 00:00:30]} Rac8 {[%clk 00:12:43]} {[%emt
00:00:22]} 19. e4 {[%clk 00:11:31]} {[%emt 00:00:39]} dxe4 {[%clk 00:12:26]}
{[%emt 00:00:20]} 20. Nxe4 {[%clk 00:11:32]} {[%emt 00:00:01]} Nxe4 {[%clk
00:11:56]} {[%emt 00:00:33]} 21. Rxe4 {[%clk 00:11:00]} {[%emt 00:00:35]} Bf6
{[%clk 00:11:56]} {[%emt 00:00:02]} 22. Qa4 {[%clk 00:10:53]} {[%emt 00:00:11]}
Qd5 {[%clk 00:11:38]} {[%emt 00:00:21]} 23. Rfe1 {[%clk 00:10:35]} {[%emt
00:00:22]} a5 {[%clk 00:11:32]} {[%emt 00:00:09]} 24. Bc3 {[%clk 00:09:37]}
{[%emt 00:01:00]} c5 {[%clk 00:10:07]} {[%emt 00:01:27]} 25. Qb5 {[%clk
00:09:26]} {[%emt 00:00:15]} Rfd8 {[%clk 00:09:51]} {[%emt 00:00:19]} 26. Ne5
{[%clk 00:09:24]} {[%emt 00:00:03]} Nxe5 {[%clk 00:09:43]} {[%emt 00:00:13]} 27.
dxe5 {[%clk 00:09:25]} {[%emt 00:00:02]} Bg7 {[%clk 00:08:36]} {[%emt
00:01:10]} 28. Kg1 {[%clk 00:09:26]} {[%emt 00:00:02]} Rc6 {[%clk 00:08:05]}
{[%emt 00:00:33]} 29. R4e2 {[%clk 00:08:11]} {[%emt 00:01:19]} Re6 {[%clk
00:07:48]} {[%emt 00:00:19]} 30. Rd2 {[%clk 00:08:04]} {[%emt 00:00:10]} Qa8
{[%clk 00:07:50]} 31. Rd6 {[%clk 00:07:24]} {[%emt 00:00:43]} Rdxd6 {[%clk
00:06:43]} {[%emt 00:01:10]} 32. exd6 {[%clk 00:07:25]} {[%emt 00:00:02]} Rxe1+
{[%clk 00:04:07]} {[%emt 00:02:39]} 33. Bxe1 {[%clk 00:07:26]} {[%emt
00:00:02]} Qe4 {[%clk 00:03:20]} {[%emt 00:00:50]} 34. Bc3 {[%clk 00:05:15]}
{[%emt 00:02:15]} Qb1+ {[%clk 00:02:55]} {[%emt 00:00:28]} 35. Kg2 {[%clk
00:05:14]} {[%emt 00:00:04]} Qe4+ {[%clk 00:02:48]} {[%emt 00:00:10]} 36. Kg1
{[%clk 00:04:48]} {[%emt 00:00:27]} 1/2-1/2

[Event "15. Dobrovický rapid - Tereos TTD a.s. – open"]
[Site "Dobrovice, Czech Republic"]
[Date "2020.02.29"]
[Round "8.8"]
[White "Sulc Jakub"]
[Black "Joukl Zdenek"]
[Result "1-0"]
[TimeControl "15m + 3s / tah"]
[WhiteElo "1754"]
[BlackElo "2022"]

1. e4 {[%clk 00:15:04]} c6 {[%emt 00:00:02]} 2. d4 {[%emt 00:00:06]} d5 {[%clk
00:14:55]} {[%emt 00:00:03]} 3. e5 {[%clk 00:15:05]} {[%emt 00:00:03]} g6
{[%clk 00:14:42]} {[%emt 00:00:17]} 4. Nf3 {[%clk 00:15:02]} {[%emt 00:00:05]}
h5 {[%clk 00:14:38]} {[%emt 00:00:08]} 5. h3 {[%clk 00:14:59]} {[%emt
00:00:06]} Nh6 {[%clk 00:14:21]} {[%emt 00:00:20]} 6. Bd3 {[%clk 00:14:48]}
{[%emt 00:00:14]} Bf5 {[%clk 00:13:59]} {[%emt 00:00:25]} 7. Bxh6 {[%clk
00:14:22]} {[%emt 00:00:29]} Bxh6 {[%clk 00:13:47]} {[%emt 00:00:15]} 8. Bxf5
{[%clk 00:13:58]} {[%emt 00:00:28]} gxf5 {[%clk 00:13:46]} {[%emt 00:00:02]} 9.
Nbd2 {[%clk 00:13:57]} {[%emt 00:00:05]} e6 {[%clk 00:13:23]} {[%emt 00:00:27]}
10. c3 {[%clk 00:13:58]} {[%emt 00:00:02]} Nd7 {[%clk 00:12:39]} {[%emt
00:00:46]} 11. Qe2 {[%clk 00:13:45]} {[%emt 00:00:15]} Qa5 {[%clk 00:11:24]}
{[%emt 00:01:19]} 12. Nb3 {[%clk 00:13:06]} {[%emt 00:00:43]} Qb6 {[%clk
00:11:08]} {[%emt 00:00:19]} 13. Nfd2 {[%clk 00:12:42]} {[%emt 00:00:26]} a5
{[%clk 00:10:41]} {[%emt 00:00:31]} 14. Rb1 {[%clk 00:12:26]} {[%emt 00:00:18]}
a4 {[%clk 00:10:05]} {[%emt 00:00:39]} 15. Nc1 {[%clk 00:12:27]} {[%emt
00:00:03]} c5 {[%clk 00:09:49]} {[%emt 00:00:20]} 16. Nf3 {[%clk 00:12:05]}
{[%emt 00:00:24]} Bxc1 {[%clk 00:06:22]} {[%emt 00:03:30]} 17. Rxc1 {[%clk
00:12:04]} {[%emt 00:00:04]} Rc8 {[%clk 00:06:12]} {[%emt 00:00:13]} 18. O-O
{[%clk 00:12:03]} {[%emt 00:00:04]} Ke7 {[%clk 00:05:23]} {[%emt 00:00:52]} 19.
Qd2 {[%clk 00:11:21]} {[%emt 00:00:44]} Rcg8 {[%clk 00:05:18]} {[%emt
00:00:08]} 20. Kh1 {[%clk 00:11:13]} {[%emt 00:00:11]} Rg7 {[%clk 00:04:35]}
{[%emt 00:00:46]} 21. c4 {[%clk 00:10:36]} {[%emt 00:00:39]} cxd4 {[%clk
00:02:51]} {[%emt 00:01:47]} 22. cxd5 {[%clk 00:10:31]} {[%emt 00:00:08]} Rd8
{[%clk 00:00:36]} {[%emt 00:02:18]} 23. d6+ {[%clk 00:08:40]} {[%emt 00:01:55]}
Ke8 {[%clk 00:00:37]} {[%emt 00:00:01]} 24. Rfe1 {[%clk 00:08:39]} {[%emt
00:00:04]} Qb5 {[%clk 00:00:23]} {[%emt 00:00:17]} 25. Qxd4 {[%clk 00:08:03]}
{[%emt 00:00:39]} Qd5 {[%clk 00:00:15]} {[%emt 00:00:11]} 26. Qh4 {[%clk
00:05:51]} {[%emt 00:02:15]} f6 {[%clk 00:00:06]} {[%emt 00:00:12]} 27. exf6
{[%clk 00:05:43]} {[%emt 00:00:11]} Rf7 {[%clk 00:00:05]} {[%emt 00:00:04]} 28.
Ng5 {[%clk 00:05:44]} {[%emt 00:00:02]} Rxf6 {[%clk 00:00:05]} {[%emt
00:00:04]} 29. Qxh5+ {[%clk 00:05:44]} {[%emt 00:00:04]} Kf8 {[%clk 00:00:04]}
{[%emt 00:00:03]} 30. Qh8# {[%clk 00:05:45]} {[%emt 00:00:02]} 1-0

[Event "15. Dobrovický rapid - Tereos TTD a.s. – open"]
[Site "Dobrovice, Czech Republic"]
[Date "2020.02.29"]
[Round "8.9"]
[White "Nedoma Marek"]
[Black "Stursa Jan"]
[Result "1/2-1/2"]
[TimeControl "15m + 3s / tah"]
[WhiteElo "2003"]
[BlackElo "1943"]

1. d4 {[%clk 00:15:03]} {[%emt 00:00:02]} Nf6 {[%clk 00:15:02]} {[%emt
00:00:05]} 2. Nf3 {[%clk 00:15:04]} {[%emt 00:00:02]} g6 {[%clk 00:15:01]}
{[%emt 00:00:03]} 3. Bf4 {[%clk 00:15:05]} {[%emt 00:00:03]} Bg7 {[%clk
00:14:58]} {[%emt 00:00:06]} 4. Nbd2 {[%clk 00:15:05]} {[%emt 00:00:03]} d6
{[%clk 00:13:32]} {[%emt 00:01:29]} 5. e3 {[%clk 00:14:51]} {[%emt 00:00:16]}
O-O {[%clk 00:12:40]} {[%emt 00:00:55]} 6. h3 {[%clk 00:14:43]} {[%emt
00:00:11]} Nbd7 {[%clk 00:12:31]} {[%emt 00:00:11]} 7. Bd3 {[%clk 00:14:41]}
{[%emt 00:00:05]} b6 {[%clk 00:12:30]} {[%emt 00:00:05]} 8. O-O {[%clk
00:14:31]} {[%emt 00:00:13]} Bb7 {[%clk 00:12:32]} 9. Re1 {[%clk 00:14:33]}
{[%emt 00:00:02]} c5 {[%clk 00:12:28]} {[%emt 00:00:06]} 10. c3 {[%clk
00:14:30]} {[%emt 00:00:06]} Re8 {[%clk 00:12:03]} {[%emt 00:00:27]} 11. Bg3
{[%clk 00:12:04]} {[%emt 00:02:29]} e5 {[%clk 00:11:49]} {[%emt 00:00:18]} 12.
Bc4 {[%clk 00:11:37]} {[%emt 00:00:30]} h6 {[%clk 00:10:38]} {[%emt 00:01:14]}
13. dxe5 {[%clk 00:11:09]} {[%emt 00:00:31]} dxe5 {[%clk 00:10:32]} {[%emt
00:00:09]} 14. e4 {[%clk 00:11:03]} {[%emt 00:00:08]} Nh5 {[%clk 00:09:46]}
{[%emt 00:00:50]} 15. Qb3 {[%clk 00:10:26]} {[%emt 00:00:40]} Qe7 {[%clk
00:09:20]} {[%emt 00:00:29]} 16. Bh2 {[%clk 00:10:04]} {[%emt 00:00:25]} Nf4
{[%clk 00:09:15]} {[%emt 00:00:07]} 17. Bxf4 {[%clk 00:09:22]} {[%emt
00:00:45]} exf4 {[%clk 00:09:17]} {[%emt 00:00:01]} 18. Bd5 {[%clk 00:09:22]}
{[%emt 00:00:02]} Rab8 {[%clk 00:08:07]} {[%emt 00:01:13]} 19. c4 {[%clk
00:09:09]} {[%emt 00:00:17]} Ne5 {[%clk 00:07:40]} {[%emt 00:00:30]} 20. Rab1
{[%clk 00:08:47]} {[%emt 00:00:23]} Bc8 {[%clk 00:06:49]} {[%emt 00:00:55]} 21.
Nxe5 {[%clk 00:08:39]} {[%emt 00:00:12]} Qxe5 {[%clk 00:06:52]} {[%emt
00:00:01]} 22. Nf3 {[%clk 00:08:24]} {[%emt 00:00:18]} Qh5 {[%clk 00:06:40]}
{[%emt 00:00:15]} 23. Nh2 {[%clk 00:06:15]} {[%emt 00:02:12]} g5 {[%clk
00:06:03]} {[%emt 00:00:39]} 24. Rbd1 {[%clk 00:04:46]} {[%emt 00:01:31]} Bd4
{[%clk 00:04:59]} {[%emt 00:01:07]} 25. Nf3 {[%clk 00:03:29]} {[%emt 00:01:20]}
Bg7 {[%clk 00:04:55]} {[%emt 00:00:08]} 26. Nh2 {[%clk 00:03:28]} {[%emt
00:00:04]} Bd4 {[%clk 00:04:56]} {[%emt 00:00:01]} 27. Nf3 {[%clk 00:02:50]}
{[%emt 00:00:41]} Bg7 {[%clk 00:04:57]} {[%emt 00:00:01]} 28. Bc6 {[%clk
00:02:48]} {[%emt 00:00:05]} Rf8 {[%clk 00:04:01]} {[%emt 00:01:00]} 29. Bd7
{[%clk 00:02:49]} {[%emt 00:00:02]} Bxd7 {[%clk 00:03:42]} {[%emt 00:00:22]} 30.
Rxd7 {[%clk 00:02:51]} {[%emt 00:00:01]} a6 {[%clk 00:03:03]} {[%emt 00:00:42]}
31. Qa3 {[%clk 00:02:17]} {[%emt 00:00:37]} b5 {[%clk 00:02:17]} {[%emt
00:00:49]} 32. Qxc5 {[%clk 00:02:06]} {[%emt 00:00:14]} bxc4 {[%clk 00:02:15]}
{[%emt 00:00:05]} 33. Qxc4 {[%clk 00:02:01]} {[%emt 00:00:09]} Rxb2 {[%clk
00:02:07]} {[%emt 00:00:10]} 34. e5 {[%clk 00:02:00]} {[%emt 00:00:04]} g4
{[%clk 00:01:50]} {[%emt 00:00:20]} 35. hxg4 {[%clk 00:02:02]} {[%emt
00:00:01]} Qxg4 {[%clk 00:01:52]} {[%emt 00:00:01]} 36. e6 {[%clk 00:01:55]}
{[%emt 00:00:09]} fxe6 {[%clk 00:01:40]} {[%emt 00:00:15]} 37. Qxe6+ {[%clk
00:01:46]} {[%emt 00:00:12]} Qxe6 {[%clk 00:01:41]} {[%emt 00:00:03]} 38. Rxe6
{[%clk 00:01:49]} Rxa2 {[%clk 00:01:09]} {[%emt 00:00:35]} 39. Ra7 {[%clk
00:01:07]} {[%emt 00:00:44]} a5 {[%clk 00:01:03]} {[%emt 00:00:09]} 40. Rea6
{[%clk 00:00:52]} {[%emt 00:00:18]} Rf7 {[%clk 00:00:56]} {[%emt 00:00:10]} 41.
Ra8+ {[%clk 00:00:49]} {[%emt 00:00:07]} Rf8 {[%clk 00:00:57]} {[%emt
00:00:02]} 42. R8a7 {[%clk 00:00:47]} {[%emt 00:00:04]} Rf7 {[%clk 00:01:00]}
43. Ra8+ {[%clk 00:00:48]} {[%emt 00:00:03]} Rf8 {[%clk 00:01:02]} 44. R8a7
{[%clk 00:00:49]} {[%emt 00:00:02]} 1/2-1/2